bitfinex-derivatives/quotes_ETHF0:USTF0_20241207
["timestamp","ask_amount","ask_price","bid_price","bid_amount"]
[1733545420355,2.13491751,3986.2,3986.1,0.382]
[1733545421356,3.2078,3986.4,3986.1,0.55735]
[1733545421750,0.17535,3986.2,3986.1,0.55735]
[1733545421954,1.95956751,3986.2,3986.1,0.55735]
[1733545422557,1.95956751,3986.2,3986.1,0.382]
[1733545422758,2.13491751,3986.2,3986.1,0.55735]
[1733545423959,1.95956751,3986.2,3986.1,0.55735]
[1733545425163,1.95956751,3986.2,3986.1,0.382]
[1733545425467,2.13491751,3986.2,3986.1,0.382]
[1733545435157,0.17534,3986.4,3986.1,0.55735]
[1733545435364,1.95956751,3986.6,3986.5,0.17533]
[1733545438473,1.95956751,3986.6,3986.5,6.07227011]
[1733545440063,1.95956751,3986.6,3986.5,8.03377192]
[1733545441267,1.95956751,3986.6,3986.5,0.17533]
[1733545442468,3.2078,3986.8,3986.7,0.17532]
[1733545442968,3.2078,3986.8,3986.7,8.03376192]
[1733545443874,3.2078,3987.3,3987.2,0.1753]
[1733545444069,1.95956751,3987.4,3987.3,0.1753]
[1733545444780,1.95956751,3987.4,3987.3,8.58957272]
[1733545445166,1.95956751,3987.4,3987.3,16.4549709]
[1733545445366,0.17528,3987.9,3987.3,7.86539818]
[1733545445569,0.17528,3987.9,3987.6,6.07431895]
[1733545445875,5.16736751,3988.0,3987.7,0.3848]
[1733545445876,0.17528,3987.8,3987.7,0.3848]
[1733545447473,0.17528,3987.8,3987.1,8.26709818]
[1733545447474,0.17529,3987.6,3987.3,0.1753]
[1733545447669,0.17529,3987.6,3987.2,0.3848]
[1733545448166,0.17529,3987.6,3987.4,0.17529]
[1733545448469,0.1753,3987.3,3987.2,0.3848]
[1733545449470,0.17532,3986.9,3986.8,0.717]
[1733545449970,0.17532,3986.9,3986.6,0.93022]
[1733545450373,0.17532,3986.7,3986.6,0.7549]
[1733545450778,1.95956751,3987.1,3986.6,0.3802]
[1733545451075,0.17532,3986.8,3986.6,0.55553]
[1733545451265,1.95956751,3987.1,3986.6,0.3802]
[1733545451772,0.17531,3987.0,3986.8,0.17532]
[1733545451977,0.17532,3986.9,3986.7,0.17532]
[1733545453471,3.2078,3987.2,3987.1,0.17531]
[1733545454874,3.2078,3987.6,3987.5,0.17529]
[1733545455182,3.38309,3987.6,3987.4,6.07432895]
[1733545455377,3.2078,3987.6,3987.5,0.17529]
[1733545459583,3.2078,3987.6,3987.5,6.07432895]
[1733545459788,3.2078,3988.1,3988.0,0.17526]
[1733545460388,3.2078,3988.1,3988.0,0.17527]
[1733545460581,3.38306,3988.1,3987.9,0.17527]
[1733545460783,3.2078,3988.1,3987.7,0.17528]
[1733545460983,3.2078,3988.1,3987.9,0.17527]
[1733545461182,3.38306,3988.1,3987.9,0.17527]
[1733545461688,3.2078,3988.1,3988.0,0.17527]
[1733545463081,3.38306,3988.1,3987.9,0.17527]
[1733545463484,3.38306,3988.1,3987.7,0.4017]
[1733545463485,3.2078,3988.1,3987.7,0.4017]
[1733545463788,0.3953,3988.0,3987.8,0.17528]
[1733545464091,0.3953,3988.0,3987.9,0.17527]
[1733545464391,0.57057,3988.0,3987.9,0.17527]
[1733545464782,0.57057,3988.0,3987.3,0.7862]
[1733545464987,0.57057,3988.0,3987.8,0.17527]
[1733545465185,0.3953,3988.0,3987.3,0.7862]
[1733545465388,0.57057,3988.0,3987.4,0.17529]
[1733545465588,0.3953,3988.0,3987.3,0.7862]
[1733545465788,0.17527,3987.9,3987.7,0.17528]
[1733545466088,0.17527,3987.9,3987.8,0.17528]
[1733545466290,0.57057,3988.0,3987.8,0.17528]
[1733545466589,0.17529,3987.6,3987.4,0.17529]
[1733545466785,3.38308,3987.7,3987.4,0.17529]
[1733545467488,3.2078,3987.7,3987.4,0.17529]
[1733545467687,0.17529,3987.6,3987.4,0.17529]
[1733545468388,0.17528,3987.6,3987.4,0.17529]
[1733545468583,0.17529,3987.5,3987.3,0.386]
[1733545468889,0.17529,3987.5,3987.3,0.5613]
[1733545469081,0.17529,3987.6,3987.4,0.17529]
[1733545471692,0.17529,3987.6,3987.5,0.17529]
[1733545471892,3.2078,3987.7,3987.3,0.386]
[1733545472092,3.38308,3987.7,3987.5,0.17529]
[1733545472891,3.2078,3987.7,3987.3,0.386]
[1733545473089,0.17528,3987.6,3987.5,0.17529]
[1733545473290,0.17528,3987.6,3987.4,0.17529]
[1733545473894,0.17528,3987.6,3987.3,0.386]
[1733545474096,0.17528,3987.6,3987.5,0.17529]
[1733545474289,3.38308,3987.7,3987.5,0.17529]
[1733545475907,0.17529,3987.6,3987.4,0.17529]
[1733545476205,0.17529,3987.5,3987.3,0.5613]
[1733545476605,3.2078,3987.7,3987.3,0.386]
[1733545476803,0.57329,3987.4,3987.3,0.386]
[1733545477700,3.2078,3987.7,3987.3,0.386]
[1733545477899,3.2078,3987.7,3987.6,0.17528]
[1733545477900,3.38308,3987.7,3987.6,0.17528]
[1733545478308,3.38308,3987.7,3987.5,0.17529]
[1733545479308,3.2078,3987.7,3987.3,0.386]
[1733545479507,3.38308,3987.7,3987.3,0.386]
[1733545479703,3.38308,3987.7,3987.5,0.17529]
[1733545480412,0.17528,3987.6,3987.5,0.17529]
[1733545480604,3.38308,3987.7,3987.5,0.17529]
[1733545481207,3.2078,3987.7,3987.6,0.17528]
[1733545481904,3.2078,3987.7,3987.3,0.386]
[1733545481905,3.38308,3987.7,3987.3,0.386]
[1733545482105,3.38308,3987.7,3987.5,0.17529]
[1733545482411,3.38308,3987.7,3987.6,0.17528]
[1733545482911,3.2078,3987.7,3987.3,0.386]
[1733545483106,3.38308,3987.7,3987.5,0.17529]
[1733545483410,3.2078,3987.7,3987.5,0.17529]
[1733545483614,0.17529,3987.6,3987.4,0.17529]
[1733545484306,3.2078,3987.7,3987.3,0.386]
[1733545484503,0.17529,3987.4,3987.3,0.386]
[1733545486911,0.17529,3987.5,3987.3,0.5613]
[1733545487311,0.17529,3987.5,3987.3,6.46790468]
[1733545487712,0.56919,3987.6,3987.4,0.17529]
[1733545487916,3.2078,3987.7,3987.4,0.17529]
[1733545488411,3.2078,3987.7,3987.5,0.17529]
[1733545488608,3.2078,3987.7,3987.6,0.17528]
[1733545488813,2.94533418,3987.9,3987.8,0.17528]
[1733545492417,3.2078,3988.1,3988.0,0.17527]
[1733545495017,0.3988,3988.7,3988.0,7.87547291]
[1733545495210,3.2078,3988.6,3988.5,3.93658459]
[1733545495618,3.2078,3988.6,3988.4,6.08012688]
[1733545495922,3.38304,3988.6,3988.5,3.9362137]
[1733545496113,3.38304,3988.6,3988.4,5.90487688]
[1733545496319,3.38304,3988.6,3988.3,0.17525]
[1733545496320,3.38304,3988.6,3988.5,3.93629989]
[1733545496520,4.28770411,3988.6,3988.5,3.93629989]
[1733545497425,4.11246411,3988.6,3988.5,4.11154989]
[1733545498519,4.28770411,3988.6,3988.5,4.11154989]
[1733545498720,4.11246411,3988.6,3988.5,4.11154989]
[1733545499017,4.28770411,3988.6,3988.5,4.11154989]
[1733545499220,4.28770411,3988.6,3988.5,0.17525]
[1733545499421,4.11246411,3988.6,3988.5,0.17525]
[1733545499918,4.11246411,3988.6,3988.5,4.11322302]
[1733545500323,4.11246411,3988.6,3988.5,3.93797302]
[1733545500526,4.28770411,3988.6,3988.4,3.93797302]
[1733545500728,4.28770411,3988.6,3988.5,0.17525]
[1733545501023,4.11246411,3988.6,3988.5,0.17525]
[1733545501325,4.11246411,3988.6,3988.5,4.11322302]
[1733545502021,4.28770411,3988.6,3988.5,0.17525]
[1733545503018,4.11246411,3988.6,3988.5,0.17525]
[1733545503321,4.28770411,3988.6,3988.5,0.17525]
[1733545503716,0.17525,3988.5,3988.4,6.08012688]
[1733545504114,0.17525,3988.5,3988.4,0.17525]
[1733545504520,4.11246411,3988.6,3988.3,5.90487688]
[1733545504720,4.28770411,3988.6,3988.5,3.93685095]
[1733545504920,4.28770411,3988.6,3988.5,4.11210095]
[1733545505926,4.28770411,3988.6,3988.5,3.93685095]
[1733545506624,3.2078,3988.6,3988.5,4.11210095]
[1733545506818,4.11246411,3988.6,3988.5,0.17525]
[1733545507017,4.11246411,3988.6,3988.4,5.90487688]
[1733545507215,4.28770411,3988.6,3988.4,6.08012688]
[1733545507422,4.11246411,3988.6,3988.4,5.90487688]
[1733545507626,0.17525,3988.5,3988.4,5.90487688]
[1733545507823,4.11246411,3988.6,3988.3,6.28647688]
[1733545508022,4.28770411,3988.6,3988.5,0.17525]
[1733545508223,4.28770411,3988.6,3988.4,0.17525]
[1733545508423,4.28770411,3988.6,3988.3,0.3816]
[1733545508932,4.28770411,3988.6,3988.5,0.17525]
[1733545509430,4.28770411,3988.6,3988.4,0.17525]
[1733545510023,4.28770411,3988.6,3988.3,0.3816]
[1733545510222,4.11246411,3988.6,3988.5,0.17525]
[1733545510828,4.11246411,3988.6,3988.5,0.58025]
[1733545513624,3.2078,3988.6,3988.5,0.58025]
[1733545515535,3.2078,3988.6,3988.5,6.48512688]
[1733545516637,3.2078,3988.6,3988.5,0.58025]
[1733545527941,3.2078,3988.6,3988.5,4.51501552]
[1733545528137,3.2078,3988.6,3988.5,0.58025]
[1733545528341,3.92711224,3989.4,3988.5,6.48512688]
[1733545528342,2.94533418,3989.2,3988.5,6.48512688]
[1733545528546,6.15313418,3989.2,3989.1,0.17522]
[1733545528749,6.32834418,3989.2,3989.0,0.17522]
[1733545529245,6.32835418,3989.2,3989.0,0.17522]
[1733545529635,3.38302,3989.2,3989.1,0.4041]
[1733545530132,3.38302,3989.2,3989.1,4.33936625]
[1733545530440,3.2078,3989.2,3989.1,4.33936625]
[1733545530641,3.38301,3989.2,3989.1,0.4041]
[1733545530839,3.2078,3989.2,3989.1,0.4041]
[1733545531445,4.11246411,3989.2,3989.0,3.93526625]
[1733545531738,0.17523,3988.8,3988.7,2.39172625]
[1733545531943,0.17525,3988.5,3988.2,0.7995]
[1733545532133,7.29267358,3988.8,3988.2,6.70437688]
[1733545532134,0.4078,3988.7,3988.2,6.70437688]
[1733545532343,0.90466411,3988.4,3988.2,5.90487688]
[1733545532539,4.28771411,3988.4,3988.0,5.90487688]
[1733545532936,0.17525,3988.3,3988.0,5.90487688]
[1733545533241,0.17527,3988.0,3987.9,5.9069978]
[1733545534442,0.58306,3988.2,3987.9,5.9069978]
[1733545535142,0.58306,3988.2,3988.0,5.9069978]
[1733545535544,2.94533418,3988.7,3987.9,7.87547291]
[1733545535742,0.17525,3988.4,3988.2,5.9070934]
[1733545535935,0.17525,3988.4,3987.9,3.90186318]
[1733545535936,1.80932822,3988.3,3987.9,3.90186318]
[1733545536139,1.80932822,3988.3,3987.2,13.05214114]
[1733545536140,7.96132283,3988.0,3987.2,9.05117291]
[1733545536435,0.17531,3987.1,3986.7,7.87547291]
[1733545536746,0.90466411,3986.9,3986.8,0.4141]
[1733545541450,1.07998411,3986.9,3986.8,0.4141]
[1733545544846,0.90466411,3986.9,3986.4,1.0645]
[1733545545046,1.07999411,3986.5,3986.4,1.0645]
[1733545545255,1.07999411,3986.5,3986.4,0.3805]
[1733545549657,3.2078,3987.0,3986.4,0.3805]
[1733545549953,0.17533,3986.7,3986.5,0.4112]
[1733545550854,3.2078,3987.0,3986.5,0.4112]
[1733545551158,0.17532,3986.7,3986.5,0.4112]
[1733545552152,0.90466411,3986.9,3986.5,0.4112]
[1733545552450,0.17533,3986.6,3986.5,0.4112]
[1733545553055,0.17533,3986.7,3986.5,0.4112]
[1733545553662,0.17532,3986.7,3986.5,0.4112]
[1733545554461,0.17532,3986.7,3986.5,0.2049]
[1733545554662,0.90466411,3986.9,3986.5,0.2049]
[1733545554856,0.17533,3986.7,3986.5,0.2049]
[1733545555561,0.17533,3986.6,3986.5,0.2049]
[1733545556757,0.17533,3986.6,3986.5,0.9109]
[1733545558160,1.07999411,3986.6,3986.5,0.9109]
[1733545558365,1.07999411,3986.6,3986.5,0.2049]
[1733545561662,1.07999411,3986.6,3986.1,0.382]
[1733545561663,0.17537,3985.6,3985.3,7.85595671]
[1733545561867,0.90466411,3985.4,3985.0,0.8071]
[1733545562073,0.17539,3985.1,3985.0,0.8071]
[1733545563158,0.17539,3985.1,3985.0,1.5131]
[1733545564061,0.90466411,3985.4,3985.0,1.5131]
[1733545564258,0.17539,3985.1,3985.0,1.5131]
[1733545564566,0.17535,3986.1,3985.7,0.17536]
[1733545564770,3.2078,3986.6,3986.0,0.17535]
[1733545564969,3.2078,3986.6,3986.0,0.706]
[1733545565261,0.17533,3986.5,3986.0,0.706]
[1733545565462,3.2078,3986.6,3986.0,0.706]
[1733545565656,3.2078,3986.6,3986.1,0.17535]
[1733545565657,0.17534,3986.4,3986.1,0.17535]
[1733545566766,0.17534,3986.4,3986.0,0.706]
[1733545566965,0.17534,3986.4,3986.2,0.17535]
[1733545567166,0.17534,3986.4,3986.0,0.706]
[1733545567361,0.17534,3986.4,3986.1,0.17535]
[1733545567761,0.17533,3986.5,3986.2,0.17534]
[1733545568158,0.17533,3986.5,3986.3,0.3812]
[1733545568665,3.2078,3986.6,3986.4,0.17533]
[1733545568978,3.2078,3986.6,3986.5,0.17533]
[1733545569166,3.2078,3986.6,3986.4,0.17534]
[1733545569473,1.96248665,3987.1,3986.3,3.589]
[1733545569765,0.17532,3986.9,3986.6,0.17533]
[1733545569971,0.4069,3987.3,3986.7,1.086]
[1733545570167,3.2078,3987.4,3986.8,0.3893]
[1733545570467,0.17532,3986.9,3986.8,0.3893]
[1733545570868,3.2078,3987.4,3986.8,0.3893]
[1733545571068,0.17531,3987.0,3986.8,0.3893]
[1733545571261,3.2078,3987.4,3986.8,0.3893]
[1733545571463,0.17531,3987.1,3986.8,0.3893]
[1733545571871,3.2078,3987.4,3986.8,0.3893]
[1733545572273,0.4029,3987.6,3987.1,0.17531]
[1733545572572,0.1753,3987.3,3986.9,0.17532]
[1733545572760,0.17531,3987.1,3986.8,3.77242]
[1733545573270,0.17531,3987.2,3986.8,3.77242]
[1733545573470,1.96248665,3987.5,3986.8,3.77242]
[1733545573976,1.96248665,3987.5,3986.9,0.17531]
[1733545573977,0.1753,3987.2,3986.9,0.17531]
[1733545574571,1.96248665,3987.5,3986.9,0.17531]
[1733545574766,0.17529,3987.4,3986.9,0.17531]
[1733545574968,0.1753,3987.3,3986.9,0.17531]
[1733545575167,1.96248665,3987.5,3986.8,3.5971]
[1733545575474,0.17531,3987.1,3986.8,3.77242]
[1733545575974,0.1753,3987.2,3986.8,3.77242]
[1733545576165,1.96248665,3987.5,3986.8,3.5971]
[1733545576368,3.78599,3987.6,3987.2,0.1753]
[1733545576568,3.78599,3987.6,3987.3,0.3883]
[1733545576768,0.17529,3987.4,3987.3,0.3883]
[1733545577769,1.96248665,3987.5,3987.3,0.3883]
[1733545577965,0.17529,3987.4,3987.3,0.3883]
[1733545578378,1.96248665,3987.5,3987.3,0.3883]
[1733545578575,2.13777665,3987.5,3987.3,0.3883]
[1733545579073,3.6107,3987.6,3987.3,0.3883]
[1733545579278,3.2078,3988.0,3987.7,0.17528]
[1733545579469,0.3837,3988.3,3987.8,0.7851]
[1733545579669,0.3837,3988.3,3988.1,0.17526]
[1733545579867,0.3837,3988.3,3988.2,0.17526]
[1733545580070,3.2078,3988.4,3988.3,0.17525]
[1733545580572,3.2078,3988.4,3988.2,0.17526]
[1733545580765,3.2078,3988.4,3988.1,0.7]
[1733545580963,1.96248665,3988.7,3988.2,3.2078]
[1733545580964,2.13772665,3988.7,3988.2,3.2078]
[1733545581170,2.13772665,3988.7,3988.1,0.7]
[1733545581473,0.17524,3988.6,3988.3,0.17525]
[1733545581865,0.17524,3988.6,3988.1,0.7]
[1733545582063,1.96248665,3988.7,3988.1,0.7]
[1733545582273,3.38305,3988.5,3988.1,0.87526]
[1733545582666,0.17525,3988.5,3988.1,0.87526]
[1733545583071,0.17524,3988.6,3988.2,0.17526]
[1733545583275,0.17524,3988.6,3988.1,0.87526]
[1733545583580,0.17524,3988.6,3988.2,0.17526]
[1733545584470,0.17525,3988.5,3988.2,0.17526]
[1733545584676,3.38305,3988.5,3988.2,0.17526]
[1733545584873,3.2078,3988.5,3988.2,0.17526]
[1733545585075,3.2078,3988.5,3988.3,0.17525]
[1733545585472,3.2078,3988.5,3988.4,0.4122]
[1733545587477,3.38305,3988.5,3988.4,0.4122]
[1733545587677,3.2078,3988.5,3988.4,0.4122]
[1733545588780,3.38305,3988.5,3988.4,0.4122]
[1733545588984,0.17525,3988.5,3988.4,0.4122]
[1733545591174,0.17525,3988.5,3988.2,0.17526]
[1733545591880,0.17525,3988.3,3987.9,0.58697]
[1733545592084,0.17527,3988.1,3988.0,0.7]
[1733545592681,0.17527,3987.9,3987.8,0.4027]
[1733545594688,1.96248665,3988.3,3987.8,0.4027]
[1733545594985,0.17527,3987.9,3987.8,0.4027]
[1733545599882,1.96248665,3988.3,3987.8,0.4027]
[1733545600090,0.377,3988.4,3987.8,0.57797]
[1733545600285,0.17527,3987.9,3987.8,0.57797]
[1733545600594,0.17527,3987.9,3987.8,0.4027]
[1733545602890,0.81513,3988.4,3987.6,0.7]
[1733545603195,0.17528,3987.7,3987.6,0.7]
[1733545605492,0.17528,3987.6,3987.5,0.8174]
[1733545614201,0.17528,3987.7,3987.5,0.8174]
[1733545614398,3.2078,3988.0,3987.9,0.17527]
[1733545614698,2.93916007,3988.4,3988.1,0.17526]
[1733545614699,0.17525,3988.4,3988.1,0.17526]
[1733545614896,0.17525,3988.5,3988.2,0.7892]
[1733545615100,0.17525,3988.5,3988.3,0.4]
[1733545615300,3.2078,3988.8,3988.3,0.4]
[1733545615692,0.17525,3988.5,3988.3,0.57525]
[1733545615893,0.17525,3988.4,3988.3,0.4]
[1733545617102,0.17525,3988.5,3988.3,0.4]
[1733545617291,0.17525,3988.4,3988.3,0.4]
[1733545618098,3.32476007,3989.1,3988.3,0.4]
[1733545618300,6.14696007,3989.3,3988.9,0.17522]
[1733545618502,3.2078,3989.3,3989.0,1.1949]
[1733545618702,3.2078,3989.3,3989.0,1.37012]
[1733545618904,3.2078,3989.3,3989.0,7.09169514]
[1733545619406,3.38301,3989.3,3989.0,1.1949]
[1733545619998,0.17522,3989.0,3988.9,0.7]
[1733545622108,0.17522,3989.1,3988.9,0.87523]
[1733545622399,0.17522,3989.0,3988.9,0.7]
[1733545624798,0.17521,3989.2,3988.9,0.7]
[1733545625000,0.17522,3989.0,3988.9,0.7]
[1733545628104,0.17522,3989.0,3988.6,1.36614]
[1733545628304,0.3996,3988.9,3988.6,2.06614]
[1733545628494,0.57483,3988.9,3988.6,2.06614]
[1733545628901,0.57483,3988.9,3988.7,0.17524]
[1733545629205,0.3996,3988.9,3988.7,0.17524]
[1733545629594,0.57483,3988.9,3988.7,0.17524]
[1733545630802,0.3996,3988.9,3988.7,0.17523]
[1733545631001,0.3996,3988.9,3988.6,1.8909]
[1733545631304,0.57483,3988.9,3988.6,2.06614]
[1733545632301,0.17523,3988.8,3988.6,2.06614]
[1733545632505,0.57483,3988.9,3988.6,2.06614]
[1733545632898,0.3996,3988.9,3988.6,1.8909]
[1733545633104,0.57483,3988.9,3988.6,2.06614]
[1733545633309,0.17523,3988.8,3988.6,2.06614]
[1733545633809,0.57483,3988.9,3988.7,0.17524]
[1733545634303,0.3996,3988.9,3988.6,1.8909]
[1733545634611,0.17523,3988.8,3988.6,2.06614]
[1733545635805,0.3996,3988.9,3988.6,1.8909]
[1733545636005,0.17524,3988.7,3988.6,1.8909]
[1733545636207,0.17523,3988.8,3988.6,2.06614]
[1733545638017,0.17524,3988.7,3988.6,2.06614]
[1733545639215,0.17523,3988.8,3988.6,1.8909]
[1733545639411,0.17523,3988.8,3988.7,0.17524]
[1733545639611,3.2078,3989.3,3988.6,1.8909]
[1733545639809,3.2078,3989.3,3988.8,5.89679514]
[1733545640008,3.2078,3989.3,3988.7,0.698]
[1733545640009,0.90431374,3989.1,3988.7,0.698]
[1733545640209,0.90431374,3989.1,3988.8,0.4008]
[1733545640411,0.17523,3988.9,3988.8,0.4008]
[1733545642815,0.17522,3989.1,3988.9,0.17523]
[1733545643013,0.17522,3989.0,3988.8,0.98683]
[1733545644824,0.17522,3989.1,3988.9,0.17523]
[1733545645128,0.17522,3989.1,3988.8,6.88362514]
[1733545645426,0.17522,3989.0,3988.8,6.88362514]
[1733545645719,0.17522,3989.1,3988.8,6.88362514]
[1733545646224,0.17522,3989.1,3988.8,6.70839514]
[1733545646523,0.17522,3989.1,3988.9,0.17523]
[1733545646913,0.17521,3989.2,3989.0,0.17522]
[1733545647117,3.2078,3989.3,3989.2,0.17521]
[1733545648226,3.2078,3989.3,3989.2,6.07200514]
[1733545648411,3.2078,3989.3,3989.2,6.46060514]
[1733545650519,3.2078,3989.3,3989.2,0.56381]
[1733545652228,2.93916007,3989.8,3989.2,0.3886]
[1733545652531,0.17519,3989.8,3989.6,0.17519]
[1733545652726,0.4111,3990.0,3989.7,1.1936]
[1733545652727,0.17519,3989.9,3989.7,1.1936]
[1733545653233,0.17519,3989.8,3989.7,1.1936]
[1733545654524,0.17519,3989.9,3989.7,1.36879]
[1733545656128,0.4111,3990.0,3989.7,2.09791374]
[1733545656427,3.2078,3990.1,3989.7,2.09791374]
[1733545656428,3.2078,3990.1,3990.0,0.17518]
[1733545657127,0.3994,3990.6,3990.0,1.60231374]
[1733545657332,0.57455,3990.6,3990.0,1.60231374]
[1733545657630,0.57455,3990.6,3990.4,0.17516]
[1733545658130,0.51775,3990.6,3990.5,0.4078]
[1733545658939,0.17515,3990.8,3990.5,0.58296]
[1733545659236,0.17515,3990.8,3990.6,0.4054]
[1733545659629,3.2078,3990.9,3990.6,0.4054]
[1733545659831,3.38294,3990.9,3990.6,0.58055]
[1733545660131,3.2078,3990.9,3990.8,0.17514]
[1733545660437,3.2078,3990.9,3990.7,0.17515]
[1733545661524,3.2078,3990.9,3990.6,4.3375258]
[1733545661732,3.2078,3990.9,3990.7,0.17515]
[1733545662137,3.2078,3990.9,3990.7,0.17514]
[1733545662425,3.2078,3990.9,3990.7,0.17515]
[1733545662828,3.2078,3990.9,3990.8,0.17514]
[1733545663629,3.2078,3990.9,3990.8,4.1072658]
[1733545663937,0.90431374,3991.4,3990.8,3.9321258]
[1733545664230,0.90431374,3991.4,3990.9,0.90431374]
[1733545664432,0.3803,3991.5,3990.9,4.83643954]
[1733545664633,0.3803,3991.5,3991.3,0.17512]
[1733545665030,4.28721374,3991.8,3991.3,0.17512]
[1733545665225,2.504,3994.6,3991.5,0.90431374]
[1733545665226,3.6047,3992.3,3991.5,0.90431374]
[1733545665433,3.6047,3992.3,3992.2,0.90431374]
[1733545665434,3.38288,3992.3,3992.2,0.90431374]
[1733545665627,3.38288,3992.3,3991.9,1.07940374]
[1733545665835,0.17508,3992.3,3991.9,1.07940374]
[1733545666036,0.7742,3992.6,3991.9,1.07940374]
[1733545666037,0.17508,3992.4,3991.9,1.07940374]
[1733545666337,0.7742,3992.6,3991.9,1.07941374]
[1733545666338,0.17508,3992.3,3991.9,1.07941374]
[1733545666740,0.17508,3992.3,3991.9,0.90431374]
[1733545666933,0.90431374,3992.2,3991.8,0.698]
[1733545667136,0.17509,3992.1,3991.8,0.698]
[1733545667439,3.2078,3992.3,3991.8,0.698]
[1733545667638,3.2078,3992.2,3991.8,0.698]
[1733545667836,3.38289,3992.2,3991.8,0.8731]
[1733545668329,0.17507,3992.4,3991.9,0.1751]
[1733545668532,0.01001867,3992.2,3992.0,0.17509]
[1733545668739,0.01001867,3992.2,3992.1,0.17509]
[1733545669740,0.01001867,3992.2,3992.0,0.17509]
[1733545669939,0.01001867,3992.2,3992.1,0.3772]
[1733545671742,0.18509867,3992.2,3992.1,0.3772]
[1733545671943,0.17509,3992.0,3991.9,0.7]
[1733545672137,0.17509,3992.0,3991.6,0.3993]
[1733545672442,0.17509,3992.1,3991.7,0.8751]
[1733545672737,0.01001867,3992.2,3991.7,0.8751]
[1733545672940,0.17509,3992.1,3991.7,0.8751]
[1733545673537,0.01001867,3992.2,3991.6,0.3993]
[1733545673843,0.1751,3991.8,3991.7,0.7]
[1733545674141,0.1751,3991.7,3991.6,0.3993]
[1733545674540,3.2078,3991.8,3991.4,0.7]
[1733545674844,0.17512,3991.4,3991.3,0.7]
[1733545675035,3.2078,3991.8,3991.0,0.87513]
[1733545675239,0.17513,3991.2,3991.0,0.87513]
[1733545675537,3.2078,3991.8,3991.0,0.87513]
[1733545675735,0.17513,3991.3,3991.0,0.87513]
[1733545675939,3.2078,3991.8,3991.0,0.87513]
[1733545676142,0.17513,3991.2,3991.0,0.87513]
[1733545676343,3.2078,3991.8,3991.0,0.87513]
[1733545676543,3.2078,3991.8,3991.0,0.7]
[1733545676844,0.17513,3991.3,3991.0,0.7]
[1733545677246,0.17512,3991.4,3991.0,0.87513]
[1733545677445,0.17512,3991.3,3991.0,0.87513]
[1733545677646,0.17512,3991.3,3991.0,0.7]
[1733545678846,0.17513,3991.2,3991.0,0.7]
[1733545679342,0.17512,3991.3,3991.0,0.7]
[1733545680448,0.17512,3991.3,3991.0,0.87513]
[1733545680749,0.17513,3991.2,3991.0,0.7]
[1733545681242,3.2078,3991.8,3991.0,0.7]
[1733545681442,0.17513,3991.2,3991.0,0.7]
[1733545682640,0.17513,3991.1,3991.0,0.7]
[1733545683246,0.17514,3991.0,3990.9,0.8218]
[1733545683448,0.17514,3991.0,3990.9,1.5218]
[1733545683945,0.17514,3991.0,3990.9,0.8218]
[1733545684138,0.17516,3990.5,3990.4,3.2078]
[1733545684338,0.17516,3990.6,3990.4,4.2994]
[1733545684744,0.17516,3990.6,3990.4,1.0916]
[1733545684948,0.17515,3990.7,3990.4,1.26676]
[1733545685147,0.17515,3990.8,3990.5,0.56925]
[1733545685344,0.17515,3990.7,3990.5,0.56925]
[1733545685548,1.1837,3991.2,3990.5,0.56925]
[1733545685748,0.17515,3990.8,3990.5,0.56925]
[1733545685948,1.1837,3991.2,3990.5,0.3941]
[1733545686349,0.17515,3990.8,3990.5,0.3941]
[1733545686849,0.17513,3991.1,3990.5,0.3941]
[1733545687054,0.17513,3991.1,3990.8,0.17514]
[1733545687246,0.3836,3991.2,3990.5,0.3941]
[1733545687443,0.17514,3991.0,3990.6,0.17515]
[1733545687648,0.17514,3991.0,3990.7,0.17515]
[1733545687849,0.17514,3990.9,3990.6,0.17515]
[1733545688051,0.17514,3991.0,3990.6,0.17515]
[1733545688354,0.17514,3990.9,3990.5,0.3941]
[1733545688557,0.17514,3990.9,3990.8,0.90319619]
[1733545690555,0.3836,3991.2,3990.5,0.3941]
[1733545691057,0.17515,3990.8,3990.5,0.56925]
[1733545691655,0.55873,3991.2,3990.9,0.17514]
[1733545691954,0.3836,3991.2,3991.0,0.3807]
[1733545692258,3.2078,3991.3,3991.1,0.4013]
[1733545692259,3.38292,3991.3,3991.1,0.4013]
[1733545692459,3.38292,3991.3,3991.2,0.3881]
[1733545693353,0.17513,3991.2,3991.1,0.4013]
[1733545694056,3.2078,3991.3,3990.3,4.08027706]
[1733545694261,0.17515,3990.7,3990.6,0.7]
[1733545696056,0.3858,3991.0,3990.5,0.58575]
[1733545696258,0.17515,3990.6,3990.5,0.4106]
[1733545697361,0.17516,3990.4,3990.3,3.90511706]
[1733545697563,0.17518,3990.0,3989.9,3.90511706]
[1733545697860,3.2078,3990.4,3989.8,0.87519]
[1733545697861,0.17518,3989.9,3989.8,0.87519]
[1733545698158,0.17518,3989.9,3989.8,4.78030706]
[1733545698459,0.17518,3989.9,3989.8,0.7]
[1733545699160,0.3893,3990.3,3989.8,0.7]
[1733545699360,0.17518,3990.0,3989.9,3.92459251]
[1733545701564,0.17518,3990.0,3989.8,0.17519]
[1733545701757,0.3893,3990.3,3989.8,0.17519]
[1733545701959,0.3893,3990.3,3990.0,3.92495211]
[1733545701960,0.17517,3990.1,3990.0,3.92495211]
[1733545703066,0.17518,3990.0,3989.9,3.92495211]
[1733545703761,0.17518,3990.1,3989.9,4.10013211]
[1733545703962,0.3893,3990.3,3989.9,3.92547597]
[1733545704666,0.17518,3990.0,3989.9,3.92547597]
[1733545705062,0.3893,3990.3,3989.8,3.92547597]